[Event "2022 Glenn Snow Memorial"]
[Site "Noblesville, Indiana, United States"]
[Date "2022.09.16"]
[Round "1.2"]
[White "Shabalov, Alexander"]
[Black "Criss, Nathaniel C"]
[Result "1-0"]
[TimeControl "90:30"]
[WhiteTitle "GM"]
[WhiteElo "2601"]
[BlackElo "2059"]

1. e4 {[%clk 01:27:52]} {[%emt 00:03:07]} e6 {[%clk 01:30:41]} {[%emt
00:00:19]} 2. d4 {[%clk 01:27:57]} {[%emt 00:00:25]} d5 {[%clk 01:31:04]}
{[%emt 00:00:07]} 3. e5 {[%clk 01:28:19]} {[%emt 00:00:08]} c5 {[%clk
01:31:25]} {[%emt 00:00:08]} 4. c3 {[%clk 01:28:45]} {[%emt 00:00:05]} Nc6
{[%clk 01:31:43]} {[%emt 00:00:12]} 5. Nf3 {[%clk 01:29:08]} {[%emt 00:00:06]}
Qb6 {[%clk 01:32:06]} {[%emt 00:00:07]} 6. Bd3 {[%clk 01:28:31]} {[%emt
00:01:07]} Bd7 {[%clk 01:31:06]} {[%emt 00:01:31]} 7. O-O {[%clk 01:28:16]}
{[%emt 00:00:45]} cxd4 {[%clk 01:30:34]} {[%emt 00:01:02]} 8. a3 {[%clk
01:28:37]} {[%emt 00:00:09]} a5 {[%clk 01:28:32]} {[%emt 00:02:32]} 9. cxd4
{[%clk 01:27:46]} {[%emt 00:01:20]} a4 {[%clk 01:26:31]} {[%emt 00:02:31]} 10.
Nc3 {[%clk 01:27:27]} {[%emt 00:00:49]} Na5 {[%clk 01:26:29]} {[%emt 00:00:32]}
11. Nxa4 {[%clk 01:27:09]} {[%emt 00:00:48]} Qb3 {[%clk 01:21:04]} {[%emt
00:05:55]} 12. Bc2 {[%clk 01:21:55]} {[%emt 00:05:44]} Bxa4 {[%clk 01:11:02]}
{[%emt 00:10:32]} 13. Bxb3 {[%clk 01:21:51]} {[%emt 00:00:35]} Bxb3 {[%clk
01:10:17]} {[%emt 00:01:14]} 14. Qe1 {[%clk 01:21:54]} {[%emt 00:00:26]} Bc4
{[%clk 01:10:24]} {[%emt 00:00:24]} 15. Nd2 {[%clk 01:20:57]} {[%emt 00:01:27]}
Bxf1 {[%clk 01:05:20]} {[%emt 00:05:34]} 16. Qxf1 {[%clk 01:21:21]} {[%emt
00:00:06]} Ne7 {[%clk 01:05:32]} {[%emt 00:00:18]} 17. Qb5+ {[%clk 01:21:19]}
{[%emt 00:00:32]} Nac6 {[%clk 01:05:47]} {[%emt 00:00:16]} 18. Nb3 {[%clk
01:20:08]} {[%emt 00:01:40]} f6 {[%clk 01:04:56]} {[%emt 00:01:21]} 19. exf6
{[%clk 01:18:56]} {[%emt 00:01:43]} gxf6 {[%clk 01:05:17]} {[%emt 00:00:08]} 20.
Bf4 {[%clk 01:18:31]} {[%emt 00:00:56]} Kf7 {[%clk 01:05:06]} {[%emt 00:00:39]}
21. Re1 {[%clk 01:18:51]} {[%emt 00:00:11]} Bg7 {[%clk 01:04:19]} {[%emt
00:01:17]} 22. Qe2 {[%clk 01:16:44]} {[%emt 00:02:38]} e5 {[%clk 01:02:28]}
{[%emt 00:02:21]} 23. dxe5 {[%clk 01:17:05]} {[%emt 00:00:09]} fxe5 {[%clk
01:02:31]} {[%emt 00:00:25]} 24. Qh5+ {[%clk 01:17:29]} {[%emt 00:00:06]} Ng6
{[%clk 01:02:37]} {[%emt 00:00:24]} 25. Qf5+ {[%clk 01:17:39]} {[%emt
00:00:21]} Ke8 {[%clk 01:01:13]} {[%emt 00:01:54]} 26. Nc5 {[%clk 01:16:24]}
{[%emt 00:01:45]} 1-0

[Event "2022 Glenn Snow Memorial"]
[Site "Noblesville, Indiana, United States"]
[Date "2022.09.16"]
[Round "1.7"]
[White "Davidovich, Manis"]
[Black "Lim, Timothy"]
[Result "0-1"]
[TimeControl "90:30"]
[WhiteElo "2200"]
[BlackElo "2011"]

1. f4 {[%clk 01:13:49]} {[%emt 00:17:09]} Nf6 {[%clk 01:30:14]} {[%emt
00:00:47]} 2. Nf3 {[%clk 01:13:58]} {[%emt 00:00:21]} g6 {[%clk 01:30:07]}
{[%emt 00:00:37]} 3. g3 {[%clk 01:14:16]} {[%emt 00:00:12]} Bg7 {[%clk
01:29:56]} {[%emt 00:00:41]} 4. Bg2 {[%clk 01:14:35]} {[%emt 00:00:11]} O-O
{[%clk 01:29:50]} {[%emt 00:00:37]} 5. O-O {[%clk 01:14:55]} {[%emt 00:00:10]}
c5 {[%clk 01:28:47]} {[%emt 00:01:33]} 6. d3 {[%clk 01:15:10]} {[%emt
00:00:14]} d5 {[%clk 01:25:58]} {[%emt 00:03:20]} 7. Nc3 {[%clk 01:15:31]}
{[%emt 00:00:09]} Nc6 {[%clk 01:25:51]} {[%emt 00:00:37]} 8. e4 {[%clk
01:15:12]} {[%emt 00:00:48]} d4 {[%clk 01:17:13]} {[%emt 00:09:08]} 9. Ne2
{[%clk 01:11:30]} {[%emt 00:04:12]} Bg4 {[%clk 01:12:57]} {[%emt 00:04:46]} 10.
h3 {[%clk 01:10:49]} {[%emt 00:01:11]} Bxf3 {[%clk 01:13:06]} {[%emt 00:00:21]}
11. Bxf3 {[%clk 01:09:17]} {[%emt 00:02:01]} Rc8 {[%clk 01:12:04]} {[%emt
00:01:33]} 12. g4 {[%clk 01:05:44]} {[%emt 00:04:03]} b5 {[%clk 01:11:16]}
{[%emt 00:01:18]} 13. Rf2 {[%clk 00:58:03]} {[%emt 00:08:11]} Qb6 {[%clk
01:09:03]} {[%emt 00:02:43]} 14. h4 {[%clk 00:53:05]} {[%emt 00:05:28]} c4
{[%clk 01:08:11]} {[%emt 00:01:22]} 15. a3 {[%clk 00:49:23]} {[%emt 00:04:12]}
cxd3 {[%clk 01:06:45]} {[%emt 00:01:57]} 16. Qxd3 {[%clk 00:46:35]} {[%emt
00:03:17]} Nd7 {[%clk 01:02:32]} {[%emt 00:04:43]} 17. e5 {[%clk 00:14:31]}
{[%emt 00:32:34]} Nc5 {[%clk 01:00:28]} {[%emt 00:02:32]} 18. Qd1 {[%clk
00:12:17]} {[%emt 00:02:44]} Rfd8 {[%clk 00:50:26]} {[%emt 00:10:32]} 19. Ng3
{[%clk 00:06:41]} {[%emt 00:06:07]} d3 {[%clk 00:43:50]} {[%emt 00:07:06]} 20.
c3 {[%clk 00:06:28]} {[%emt 00:00:43]} d2 {[%clk 00:38:55]} {[%emt 00:05:26]}
21. Bxd2 {[%clk 00:06:01]} {[%emt 00:00:56]} Nd3 {[%clk 00:39:15]} {[%emt
00:00:10]} 22. Ne4 {[%clk 00:04:49]} {[%emt 00:01:43]} Nxf2 {[%clk 00:39:01]}
{[%emt 00:00:44]} 23. Nxf2 {[%clk 00:05:14]} {[%emt 00:00:06]} Na5 {[%clk
00:32:32]} {[%emt 00:06:58]} 24. Qe2 {[%clk 00:02:26]} {[%emt 00:03:18]} Rxd2
{[%clk 00:31:29]} {[%emt 00:01:33]} 25. Qxd2 {[%clk 00:02:51]} {[%emt
00:00:06]} Nb3 {[%clk 00:31:52]} {[%emt 00:00:06]} 26. Qd1 {[%clk 00:01:01]}
{[%emt 00:02:20]} Nxa1 {[%clk 00:32:15]} {[%emt 00:00:08]} 27. Qxa1 {[%clk
00:01:15]} {[%emt 00:00:16]} Qe3 {[%clk 00:32:37]} {[%emt 00:00:07]} 28. Qd1
{[%clk 00:00:45]} {[%emt 00:01:00]} Qxf4 {[%clk 00:33:00]} {[%emt 00:00:07]} 29.
e6 {[%clk 00:00:39]} {[%emt 00:00:35]} fxe6 {[%clk 00:32:54]} {[%emt 00:00:36]}
30. Qd7 {[%clk 00:00:48]} {[%emt 00:00:20]} Rf8 {[%clk 00:32:59]} {[%emt
00:00:26]} 31. Qxe6+ {[%clk 00:01:07]} {[%emt 00:00:11]} Kh8 {[%clk 00:33:23]}
{[%emt 00:00:05]} 0-1

[Event "2022 Glenn Snow Memorial"]
[Site "Noblesville, Indiana, United States"]
[Date "2022.09.16"]
[Round "1.5"]
[White "Mu, Grant"]
[Black "Lopez, Mauro A"]
[Result "1/2-1/2"]
[TimeControl "90:30"]
[WhiteElo "2031"]
[BlackElo "2268"]

1. d4 {[%clk 01:30:56]} {[%emt 00:00:03]} Nf6 {[%clk 01:21:20]} {[%emt
00:09:41]} 2. c4 {[%clk 01:30:48]} {[%emt 00:00:38]} e6 {[%clk 01:21:44]}
{[%emt 00:00:06]} 3. Nc3 {[%clk 01:30:17]} {[%emt 00:01:00]} Bb4 {[%clk
01:20:25]} {[%emt 00:01:49]} 4. f3 {[%clk 01:29:48]} {[%emt 00:00:57]} O-O
{[%clk 01:20:48]} {[%emt 00:00:08]} 5. a3 {[%clk 01:28:44]} {[%emt 00:01:35]}
Bxc3+ {[%clk 01:21:12]} {[%emt 00:00:06]} 6. bxc3 {[%clk 01:29:01]} {[%emt
00:00:12]} Ne8 {[%clk 01:21:36]} {[%emt 00:00:06]} 7. e4 {[%clk 01:25:25]}
{[%emt 00:04:06]} b6 {[%clk 01:21:53]} {[%emt 00:00:14]} 8. Bd3 {[%clk
01:23:43]} {[%emt 00:02:12]} Nc6 {[%clk 01:21:41]} {[%emt 00:00:42]} 9. Nh3
{[%clk 01:20:23]} {[%emt 00:03:50]} Ba6 {[%clk 01:09:38]} {[%emt 00:12:33]} 10.
e5 {[%clk 01:14:28]} {[%emt 00:06:26]} f6 {[%clk 01:09:49]} {[%emt 00:00:19]}
11. Qc2 {[%clk 01:11:02]} {[%emt 00:03:55]} g6 {[%clk 00:59:44]} {[%emt
00:10:36]} 12. exf6 {[%clk 00:54:37]} {[%emt 00:16:55]} Qxf6 {[%clk 00:59:57]}
{[%emt 00:00:17]} 13. Bg5 {[%clk 00:52:54]} {[%emt 00:02:12]} Qf7 {[%clk
00:59:37]} {[%emt 00:00:49]} 14. O-O {[%clk 00:49:52]} {[%emt 00:03:33]} Na5
{[%clk 00:56:05]} {[%emt 00:04:03]} 15. Bh6 {[%clk 00:48:09]} {[%emt 00:02:13]}
Ng7 {[%clk 00:53:16]} {[%emt 00:03:19]} 16. Ng5 {[%clk 00:46:54]} {[%emt
00:01:45]} Qf6 {[%clk 00:53:34]} {[%emt 00:00:12]} 17. Ne4 {[%clk 00:46:50]}
{[%emt 00:00:33]} Qf7 {[%clk 00:53:25]} {[%emt 00:00:39]} 18. Ng5 {[%clk
00:46:31]} {[%emt 00:00:49]} Qf6 {[%clk 00:53:41]} {[%emt 00:00:15]} 19. Ne4
{[%clk 00:45:57]} {[%emt 00:01:04]} Qf7 {[%clk 00:52:46]} {[%emt 00:01:25]} 20.
Ng5 {[%emt 00:00:23]} Qf6 21. Ne4 Qf7 22. Ng5 1/2-1/2

[Event "2022 Glenn Snow Memorial"]
[Site "Noblesville, Indiana, United States"]
[Date "2022.09.16"]
[Round "1.3"]
[White "Xia, Ruoxiao"]
[Black "Bora, Safal"]
[Result "0-1"]
[TimeControl "90:30"]
[BlackTitle "IM"]
[WhiteElo "2056"]
[BlackElo "2539"]

1. d4 {[%clk 01:30:56]} {[%emt 00:00:02]} e6 {[%clk 01:28:10]} {[%emt
00:02:51]} 2. c4 {[%clk 01:31:14]} {[%emt 00:00:12]} b6 {[%clk 01:28:37]}
{[%emt 00:00:03]} 3. Nc3 {[%clk 01:31:21]} {[%emt 00:00:23]} Bb4 {[%clk
01:29:03]} {[%emt 00:00:04]} 4. e3 {[%clk 01:30:57]} {[%emt 00:00:54]} Bxc3+
{[%clk 01:29:10]} {[%emt 00:00:23]} 5. bxc3 {[%clk 01:31:19]} {[%emt 00:00:08]}
Bb7 {[%clk 01:29:37]} {[%emt 00:00:03]} 6. Nf3 {[%clk 01:30:58]} {[%emt
00:00:50]} c5 {[%clk 01:28:52]} {[%emt 00:01:15]} 7. Bd3 {[%clk 01:30:49]}
{[%emt 00:00:40]} f5 {[%clk 01:28:29]} {[%emt 00:00:52]} 8. O-O {[%clk
01:29:41]} {[%emt 00:01:37]} Nf6 {[%clk 01:28:42]} {[%emt 00:00:18]} 9. Ba3
{[%clk 01:25:56]} {[%emt 00:04:15]} Na6 {[%clk 01:24:25]} {[%emt 00:04:47]} 10.
Nd2 {[%clk 01:19:56]} {[%emt 00:06:30]} O-O {[%clk 01:22:48]} {[%emt 00:02:07]}
11. f3 {[%clk 01:19:47]} {[%emt 00:00:39]} d6 {[%clk 01:18:46]} {[%emt
00:04:32]} 12. Qc2 {[%clk 01:16:33]} {[%emt 00:03:44]} Nc7 {[%clk 01:11:58]}
{[%emt 00:07:18]} 13. Rae1 {[%clk 01:14:15]} {[%emt 00:02:48]} Nh5 {[%clk
01:06:12]} {[%emt 00:06:16]} 14. Bc1 {[%clk 01:03:34]} {[%emt 00:11:11]} Qf6
{[%clk 01:01:07]} {[%emt 00:05:34]} 15. f4 {[%clk 00:58:27]} {[%emt 00:05:36]}
Rae8 {[%clk 00:45:45]} {[%emt 00:15:54]} 16. Nf3 {[%clk 00:53:33]} {[%emt
00:05:24]} Qg6 {[%clk 00:44:15]} {[%emt 00:02:00]} 17. Qa4 {[%clk 00:41:50]}
{[%emt 00:12:14]} Nf6 {[%clk 00:43:24]} {[%emt 00:01:20]} 18. Qxa7 {[%emt
00:02:55]} Rb8 {[%clk 00:43:30]} {[%emt 00:00:21]} 19. Rf2 {[%clk 00:35:13]}
{[%emt 00:04:44]} Ng4 {[%clk 00:39:43]} {[%emt 00:04:18]} 20. Rff1 {[%clk
00:34:42]} {[%emt 00:01:01]} Nf6 {[%clk 00:38:37]} {[%emt 00:01:35]} 21. Rf2
{[%clk 00:33:12]} {[%emt 00:02:00]} Qe8 {[%clk 00:35:52]} {[%emt 00:03:14]} 22.
Qxb6 {[%clk 00:29:39]} {[%emt 00:04:04]} Bxf3 {[%clk 00:19:49]} {[%emt
00:16:33]} 23. Qxc7 {[%clk 00:30:04]} {[%emt 00:00:05]} Be4 {[%clk 00:19:44]}
{[%emt 00:00:34]} 24. Bf1 {[%clk 00:28:57]} {[%emt 00:01:37]} Rc8 {[%clk
00:18:55]} {[%emt 00:01:20]} 25. Qb6 {[%clk 00:28:15]} {[%emt 00:01:12]} Qe7
{[%clk 00:16:58]} {[%emt 00:02:27]} 26. Qb3 {[%clk 00:26:45]} {[%emt 00:02:00]}
Ng4 {[%clk 00:17:19]} {[%emt 00:00:09]} 27. Rfe2 {[%clk 00:23:34]} {[%emt
00:03:42]} Rf6 {[%clk 00:14:34]} {[%emt 00:03:14]} 28. g3 {[%clk 00:21:31]}
{[%emt 00:02:30]} Rff8 {[%clk 00:13:42]} {[%emt 00:01:24]} 29. Bg2 {[%clk
00:21:07]} {[%emt 00:00:53]} Rb8 {[%clk 00:13:33]} {[%emt 00:00:40]} 30. Qd1
{[%clk 00:21:02]} {[%emt 00:00:35]} Nf6 {[%clk 00:12:32]} {[%emt 00:01:31]} 31.
Bxe4 {[%clk 00:16:01]} {[%emt 00:05:32]} Nxe4 {[%clk 00:13:01]} {[%emt
00:00:02]} 32. Qc2 {[%clk 00:16:20]} {[%emt 00:00:10]} Qa7 {[%clk 00:12:42]}
{[%emt 00:00:48]} 33. g4 {[%clk 00:15:30]} {[%emt 00:01:21]} Rbc8 {[%clk
00:10:06]} {[%emt 00:03:07]} 34. d5 {[%clk 00:14:26]} {[%emt 00:01:34]} Qf7
{[%clk 00:10:10]} {[%emt 00:00:24]} 35. Rd1 {[%clk 00:13:51]} {[%emt 00:01:06]}
Rce8 {[%clk 00:10:08]} {[%emt 00:00:33]} 36. dxe6 {[%clk 00:12:37]} {[%emt
00:01:45]} Rxe6 {[%clk 00:10:15]} {[%emt 00:00:23]} 37. Rg2 {[%clk 00:12:14]}
{[%emt 00:00:51]} fxg4 {[%clk 00:09:35]} {[%emt 00:01:12]} 38. Rd5 {[%clk
00:10:48]} {[%emt 00:01:55]} Nf6 {[%clk 00:09:30]} {[%emt 00:00:36]} 39. Rg5
{[%clk 00:07:55]} {[%emt 00:03:21]} Rfe8 {[%clk 00:09:19]} {[%emt 00:00:42]} 40.
Qf5 {[%clk 00:04:13]} {[%emt 00:04:05]} Re4 {[%clk 00:07:22]} {[%emt 00:02:34]}
41. h3 {[%clk 00:02:38]} {[%emt 00:02:06]} g6 {[%clk 00:06:21]} {[%emt
00:01:32]} 42. R5xg4 {[%clk 00:00:34]} {[%emt 00:02:34]} Nxg4 {[%clk 00:06:41]}
{[%emt 00:00:10]} 43. Qxg4 {[%clk 00:00:58]} {[%emt 00:00:06]} Qxc4 {[%clk
00:07:01]} {[%emt 00:00:09]} 44. Bd2 {[%clk 00:01:17]} {[%emt 00:00:11]} Qxa2
{[%clk 00:07:01]} {[%emt 00:00:30]} 45. h4 {[%clk 00:01:25]} {[%emt 00:00:22]}
Qe6 {[%clk 00:04:04]} {[%emt 00:03:26]} 46. Qg5 {[%clk 00:01:29]} {[%emt
00:00:26]} Qe7 {[%clk 00:02:51]} {[%emt 00:01:43]} 47. Qd5+ {[%clk 00:01:22]}
{[%emt 00:00:37]} Qe6 {[%clk 00:03:17]} {[%emt 00:00:04]} 48. Qg5 {[%clk
00:01:38]} {[%emt 00:00:14]} Rxe3 {[%clk 00:01:30]} {[%emt 00:02:17]} 49. Bxe3
{[%clk 00:01:46]} {[%emt 00:00:22]} Qxe3+ {[%clk 00:01:59]} {[%emt 00:00:02]}
50. Kh2 {[%clk 00:02:14]} Rf8 {[%clk 00:01:52]} {[%emt 00:00:35]} 51. Qd5+
{[%clk 00:01:27]} {[%emt 00:01:20]} Kg7 {[%clk 00:01:56]} {[%emt 00:00:25]} 52.
f5 {[%clk 00:00:44]} {[%emt 00:01:14]} Qf4+ {[%emt 00:00:55]} 0-1

[Event "2022 Glenn Snow Memorial"]
[Site "Noblesville, Indiana, United States"]
[Date "2022.09.16"]
[Round "1.8"]
[White "Toliver, Stuart A"]
[Black "Yanayt, Eugene"]
[Result "0-1"]
[TimeControl "90:30"]
[BlackTitle "FM"]
[WhiteElo "1991"]
[BlackElo "2200"]

1. d4 {[%clk 01:30:57]} {[%emt 00:00:02]} Nf6 {[%clk 01:04:26]} {[%emt
00:26:33]} 2. c4 {[%clk 01:31:13]} {[%emt 00:00:14]} g6 {[%clk 01:04:01]}
{[%emt 00:00:55]} 3. g3 {[%clk 01:31:34]} {[%emt 00:00:10]} c5 {[%clk
01:04:03]} {[%emt 00:00:28]} 4. d5 {[%clk 01:31:39]} {[%emt 00:00:25]} e6
{[%clk 01:03:49]} {[%emt 00:00:44]} 5. Bg2 {[%clk 01:31:34]} {[%emt 00:00:35]}
exd5 {[%clk 01:04:14]} {[%emt 00:00:05]} 6. cxd5 {[%clk 01:32:00]} {[%emt
00:00:04]} d6 {[%clk 01:04:16]} {[%emt 00:00:28]} 7. Nc3 {[%clk 01:31:59]}
{[%emt 00:00:31]} Bg7 {[%clk 01:04:35]} {[%emt 00:00:13]} 8. Nf3 {[%clk
01:31:57]} {[%emt 00:00:32]} O-O {[%clk 01:04:50]} {[%emt 00:00:15]} 9. O-O
{[%clk 01:32:18]} {[%emt 00:00:09]} Re8 {[%clk 01:04:48]} {[%emt 00:00:31]} 10.
h3 {[%clk 01:32:10]} {[%emt 00:00:38]} Ne4 {[%clk 00:56:00]} {[%emt 00:09:18]}
11. Nxe4 {[%clk 01:25:58]} {[%emt 00:06:44]} Rxe4 {[%clk 00:52:05]} {[%emt
00:04:25]} 12. Nd2 {[%clk 01:21:51]} {[%emt 00:04:37]} Re8 {[%clk 00:46:24]}
{[%emt 00:06:10]} 13. Re1 {[%clk 01:18:13]} {[%emt 00:04:09]} b5 {[%clk
00:43:05]} {[%emt 00:03:48]} 14. a4 {[%clk 01:15:21]} {[%emt 00:03:22]} Bd7
{[%clk 00:38:43]} {[%emt 00:04:51]} 15. Ne4 {[%clk 01:10:41]} {[%emt 00:05:09]}
Bf5 {[%clk 00:37:38]} {[%emt 00:01:35]} 16. Nd2 {[%clk 01:06:47]} {[%emt
00:04:25]} Qb6 {[%clk 00:30:39]} {[%emt 00:07:28]} 17. axb5 {[%clk 01:04:14]}
{[%emt 00:03:02]} Qxb5 {[%clk 00:28:37]} {[%emt 00:02:33]} 18. e4 {[%clk
01:02:16]} {[%emt 00:02:29]} Bc8 {[%clk 00:25:43]} {[%emt 00:03:24]} 19. Bf1
{[%clk 01:02:04]} {[%emt 00:00:41]} Qd7 {[%clk 00:25:08]} {[%emt 00:01:06]} 20.
Qa4 {[%clk 00:58:38]} {[%emt 00:03:57]} Qe7 {[%clk 00:18:17]} {[%emt 00:07:21]}
21. Nf3 {[%clk 00:55:19]} {[%emt 00:03:50]} Nd7 {[%clk 00:15:52]} {[%emt
00:02:55]} 22. Bg5 {[%clk 00:50:59]} {[%emt 00:04:49]} f6 {[%clk 00:11:07]}
{[%emt 00:05:14]} 23. Bf4 {[%clk 00:44:24]} {[%emt 00:07:05]} Ne5 {[%clk
00:06:52]} {[%emt 00:04:45]} 24. Bxe5 {[%clk 00:42:37]} {[%emt 00:02:17]} fxe5
{[%clk 00:06:56]} {[%emt 00:00:26]} 25. Nd2 {[%clk 00:39:53]} {[%emt 00:03:14]}
Bd7 {[%clk 00:04:54]} {[%emt 00:02:32]} 26. Qa6 {[%clk 00:38:18]} {[%emt
00:02:05]} Reb8 {[%clk 00:05:01]} {[%emt 00:00:23]} 27. Nc4 {[%clk 00:36:32]}
{[%emt 00:02:16]} Bf8 {[%clk 00:05:26]} {[%emt 00:00:05]} 28. Qa5 {[%clk
00:30:28]} {[%emt 00:06:35]} Rb7 {[%clk 00:03:10]} {[%emt 00:02:46]} 29. Ra2
{[%clk 00:29:51]} {[%emt 00:01:07]} Rab8 {[%clk 00:03:00]} {[%emt 00:00:40]} 30.
Qd2 {[%clk 00:29:24]} {[%emt 00:00:57]} Rc7 {[%clk 00:02:28]} {[%emt 00:01:02]}
31. Kh2 {[%clk 00:26:12]} {[%emt 00:03:42]} Rb4 {[%clk 00:02:43]} {[%emt
00:00:15]} 32. Rea1 {[%clk 00:25:17]} {[%emt 00:01:25]} Bb5 {[%clk 00:03:06]}
{[%emt 00:00:07]} 33. Qc2 {[%clk 00:24:07]} {[%emt 00:01:40]} Qf7 {[%clk
00:01:58]} {[%emt 00:01:38]} 34. Kg2 {[%clk 00:22:29]} {[%emt 00:02:08]} a6
{[%clk 00:01:52]} {[%emt 00:00:36]} 35. Na5 {[%clk 00:21:50]} {[%emt 00:01:09]}
Qf6 {[%clk 00:01:47]} {[%emt 00:00:35]} 36. Bxb5 {[%clk 00:21:15]} {[%emt
00:01:05]} axb5 {[%clk 00:02:13]} {[%emt 00:00:04]} 37. Nc6 {[%clk 00:17:08]}
{[%emt 00:04:37]} Rc4 {[%clk 00:02:38]} {[%emt 00:00:06]} 38. Qe2 {[%clk
00:17:03]} {[%emt 00:00:34]} Rf7 {[%clk 00:02:24]} {[%emt 00:00:44]} 39. Ra7
{[%clk 00:17:00]} {[%emt 00:00:33]} Be7 {[%clk 00:01:47]} {[%emt 00:01:06]} 40.
R1a3 {[%clk 00:11:20]} {[%emt 00:06:11]} h5 {[%clk 00:01:42]} {[%emt 00:00:35]}
41. Re3 {[%clk 00:07:56]} {[%emt 00:03:54]} Bf8 {[%clk 00:01:04]} {[%emt
00:01:07]} 42. Rxf7 {[%clk 00:07:56]} {[%emt 00:00:30]} Qxf7 {[%clk 00:01:33]}
{[%emt 00:00:02]} 43. Rf3 {[%clk 00:07:17]} {[%emt 00:01:08]} Qd7 {[%clk
00:01:57]} {[%emt 00:00:06]} 44. Rf6 {[%clk 00:07:10]} {[%emt 00:00:37]} Qg7
{[%clk 00:00:55]} {[%emt 00:01:32]} 45. Qf3 {[%clk 00:05:49]} {[%emt 00:01:51]}
Rc2 {[%clk 00:01:02]} {[%emt 00:00:23]} 46. b3 {[%clk 00:04:37]} {[%emt
00:01:42]} b4 {[%clk 00:01:20]} {[%emt 00:00:12]} 47. Re6 {[%clk 00:04:12]}
{[%emt 00:00:55]} Rc3 {[%clk 00:01:21]} {[%emt 00:00:29]} 48. Qd1 {[%clk
00:04:14]} {[%emt 00:00:28]} c4 {[%clk 00:01:21]} {[%emt 00:00:30]} 49. bxc4
{[%clk 00:03:21]} {[%emt 00:01:23]} b3 {[%clk 00:01:42]} {[%emt 00:00:08]} 50.
Na5 {[%clk 00:03:13]} {[%emt 00:00:39]} b2 {[%clk 00:00:56]} {[%emt 00:01:16]}
51. Qb1 {[%clk 00:02:49]} {[%emt 00:00:54]} Qf7 {[%clk 00:01:22]} {[%emt
00:00:03]} 52. Qxb2 {[%clk 00:02:07]} {[%emt 00:01:13]} Qf3+ {[%clk 00:01:50]}
{[%emt 00:00:02]} 53. Kh2 {[%clk 00:01:37]} {[%emt 00:01:00]} Rd3 {[%clk
00:02:18]} {[%emt 00:00:02]} 54. Rxg6+ {[%clk 00:00:54]} {[%emt 00:01:14]} Kh8
{[%clk 00:02:36]} {[%emt 00:00:12]} 55. Qc1 {[%clk 00:01:03]} {[%emt 00:00:22]}
Qxf2+ {[%clk 00:01:48]} {[%emt 00:01:18]} 56. Kh1 {[%clk 00:01:30]} {[%emt
00:00:02]} Qf3+ {[%clk 00:02:08]} {[%emt 00:00:09]} 57. Kh2 {[%clk 00:01:44]}
{[%emt 00:00:17]} Qe2+ {[%clk 00:02:25]} {[%emt 00:00:13]} 58. Kg1 {[%clk
00:01:18]} {[%emt 00:00:56]} Rd1+ {[%clk 00:02:50]} {[%emt 00:00:05]} 59. Qxd1
{[%clk 00:01:42]} {[%emt 00:00:06]} Qxd1+ {[%clk 00:03:16]} {[%emt 00:00:04]}
0-1